[Event "Titled Tuesday Blitz September 28 2021"]
[White "Leitao, Rafael"]
[Black "Bristy, Mukherjee"]
[WhiteFideId "2101246"]
[BlackFideId "25077325"]
[WhiteElo "2609"]
[BlackElo "1661"]
[Result "1-0"]
[Round "08"]
[TimeControl "180+1"]
[Date "2021.09.28"]
[WhiteClock "0:00:44"]
[BlackClock "0:00:05"]

1. c4 {[%clk 0:03:00]}  f5 {[%clk 0:02:59]} 2. Nc3 {[%clk 0:03:00]}  Nf6 {[%clk 0:03:00]} 3. g3 {[%clk 0:03:00]}  Nc6 {[%clk 0:02:57]} 4. Bg2 {[%clk 0:03:01]}  e5 {[%clk 0:02:57]} 5. d3 {[%clk 0:02:58]}  Bb4 {[%clk 0:02:57]} 6. Bd2 {[%clk 0:02:56]}  O-O {[%clk 0:02:56]} 7. a3 {[%clk 0:02:56]}  Bxc3 {[%clk 0:02:57]} 8. Bxc3 {[%clk 0:02:57]}  d6 {[%clk 0:02:57]} 9. e3 {[%clk 0:02:54]}  f4 {[%clk 0:02:55]} 10. Qd2 {[%clk 0:02:38]}  fxe3 {[%clk 0:02:52]} 11. fxe3 {[%clk 0:02:37]}  Ng4 {[%clk 0:02:40]} 12. Nf3 {[%clk 0:02:33]}  e4 {[%clk 0:02:36]} 13. dxe4 {[%clk 0:02:30]}  Qe8 {[%clk 0:02:36]} 14. O-O-O {[%clk 0:02:22]}  Qxe4 {[%clk 0:02:33]} 15. Ne5 {[%clk 0:02:06]}  Qxe3 {[%clk 0:02:22]} 16. Bd5+ {[%clk 0:02:03]}  Kh8 {[%clk 0:02:17]} 17. Nf7+ {[%clk 0:01:56]}  Kg8 {[%clk 0:02:06]} 18. Nxd6+ {[%clk 0:01:49]}  Kh8 {[%clk 0:02:02]} 19. Nf7+ {[%clk 0:01:44]}  Kg8 {[%clk 0:02:00]} 20. Ne5+ {[%clk 0:01:00]}  Kh8 {[%clk 0:02:00]} 21. Nf7+ {[%clk 0:00:50]}  Kg8 {[%clk 0:01:59]} 22. Rhf1 {[%clk 0:00:49]}  Qxd2+ {[%clk 0:01:24]} 23. Rxd2 {[%clk 0:00:49]}  Nf6 {[%clk 0:01:00]} 24. Nh6+ {[%clk 0:00:48]}  Kh8 {[%clk 0:00:59]} 25. Rdf2 {[%clk 0:00:49]}  Bh3 {[%clk 0:00:31]} 26. Rxf6 {[%clk 0:00:45]}  Bxf1 {[%clk 0:00:27]} 27. Nf7+ {[%clk 0:00:45]}  Kg8 {[%clk 0:00:05]} 28. Nd8+ {[%clk 0:00:44]} 1-0


[Site "https://www.chess.com"]

[Event "Titled Tuesday Blitz September 28 2021"]
[White "Lewtak, Damian"]
[Black "Dudzinski, Pawel"]
[WhiteFideId "1141724"]
[BlackFideId "1117890"]
[WhiteElo "2231"]
[BlackElo "2193"]
[Result "1-0"]
[Round "08"]
[TimeControl "180+1"]
[Date "2021.09.28"]
[WhiteClock "0:00:38"]
[BlackClock "0:00:01"]

1. d4 {[%clk 0:03:00]}  d5 {[%clk 0:02:59]} 2. c3 {[%clk 0:03:01]}  e6 {[%clk 0:02:59]} 3. Bf4 {[%clk 0:03:01]}  c5 {[%clk 0:02:58]} 4. e3 {[%clk 0:03:02]}  Nc6 {[%clk 0:02:58]} 5. Nd2 {[%clk 0:03:01]}  Nf6 {[%clk 0:02:57]} 6. Ngf3 {[%clk 0:03:00]}  Bd6 {[%clk 0:02:57]} 7. Bg3 {[%clk 0:02:59]}  O-O {[%clk 0:02:57]} 8. Bd3 {[%clk 0:02:58]}  b6 {[%clk 0:02:56]} 9. e4 {[%clk 0:02:51]}  dxe4 {[%clk 0:02:42]} 10. Nxe4 {[%clk 0:02:50]}  Nxe4 {[%clk 0:02:42]} 11. Bxe4 {[%clk 0:02:51]}  Bb7 {[%clk 0:02:41]} 12. Qa4 {[%clk 0:02:32]}  Na5 {[%clk 0:02:18]} 13. dxc5 {[%clk 0:02:27]}  Bxc5 {[%clk 0:01:52]} 14. Rd1 {[%clk 0:02:05]}  Qe8 {[%clk 0:01:24]} 15. Qxe8 {[%clk 0:01:59]}  Rfxe8 {[%clk 0:01:23]} 16. Bxb7 {[%clk 0:02:00]}  Nxb7 {[%clk 0:01:24]} 17. Rd7 {[%clk 0:01:55]}  Re7 {[%clk 0:01:19]} 18. Rxe7 {[%clk 0:01:50]}  Bxe7 {[%clk 0:01:20]} 19. Ke2 {[%clk 0:01:50]}  Bf6 {[%clk 0:00:54]} 20. Rd1 {[%clk 0:01:48]}  Rd8 {[%clk 0:00:54]} 21. Rxd8+ {[%clk 0:01:48]}  Nxd8 {[%clk 0:00:54]} 22. Kd3 {[%clk 0:01:47]}  Kf8 {[%clk 0:00:53]} 23. Kc4 {[%clk 0:01:48]}  Ke7 {[%clk 0:00:33]} 24. Kb5 {[%clk 0:01:48]}  Kd7 {[%clk 0:00:28]} 25. Ka6 {[%clk 0:01:41]}  Nc6 {[%clk 0:00:28]} 26. Kb7 {[%clk 0:01:41]}  e5 {[%clk 0:00:23]} 27. Nd2 {[%clk 0:01:38]}  Bd8 {[%clk 0:00:20]} 28. Nc4 {[%clk 0:01:34]}  f6 {[%clk 0:00:19]} 29. f3 {[%clk 0:01:33]}  b5 {[%clk 0:00:13]} 30. Ne3 {[%clk 0:01:24]}  a5 {[%clk 0:00:13]} 31. Bf2 {[%clk 0:01:07]}  b4 {[%clk 0:00:13]} 32. c4 {[%clk 0:01:02]}  a4 {[%clk 0:00:07]} 33. Nd5 {[%clk 0:01:00]}  b3 {[%clk 0:00:07]} 34. axb3 {[%clk 0:00:57]}  axb3 {[%clk 0:00:08]} 35. Ka6 {[%clk 0:00:50]}  Ba5 {[%clk 0:00:07]} 36. Kb5 {[%clk 0:00:48]}  Bd2 {[%clk 0:00:06]} 37. Be3 {[%clk 0:00:45]}  Nd4+ {[%clk 0:00:04]} 38. Bxd4 {[%clk 0:00:41]}  exd4 {[%clk 0:00:04]} 39. Ka4 {[%clk 0:00:41]}  Kd6 {[%clk 0:00:02]} 40. Kxb3 {[%clk 0:00:41]}  Kc5 {[%clk 0:00:02]} 41. Nc7 {[%clk 0:00:40]}  Be3 {[%clk 0:00:01]} 42. Ne6+ {[%clk 0:00:38]}  Kd6 {[%clk 0:00:01]} 43. Nxg7 {[%clk 0:00:38]}  d3 {[%clk 0:00:02]} 44. Kc3 {[%clk 0:00:38]}  d2 {[%clk 0:00:01]} 45. Kc2 {[%clk 0:00:38]}  Kc5 {[%clk 0:00:02]} 46. b3 {[%clk 0:00:38]}  Kb4 {[%clk 0:00:02]} 47. Nf5 {[%clk 0:00:38]}  Bf4 {[%clk 0:00:01]} 48. g3 {[%clk 0:00:38]}  Bg5 {[%clk 0:00:01]} 49. f4 {[%clk 0:00:38]} 1-0


[Site "https://www.chess.com"]

[Event "Titled Tuesday Blitz September 28 2021"]
[White "Madaminov, Mukhiddin"]
[Black "Rogac, Srdjan"]
[WhiteFideId "14210703"]
[BlackFideId "920576"]
[WhiteElo "1855"]
[BlackElo "2389"]
[Result "0-1"]
[Round "08"]
[TimeControl "180+1"]
[Date "2021.09.28"]
[WhiteClock "0:00:43"]
[BlackClock "0:00:52"]

1. e4 {[%clk 0:03:00]}  c6 {[%clk 0:02:59]} 2. d4 {[%clk 0:02:58]}  d5 {[%clk 0:03:00]} 3. exd5 {[%clk 0:02:59]}  cxd5 {[%clk 0:03:00]} 4. c4 {[%clk 0:03:00]}  Nf6 {[%clk 0:02:59]} 5. Nc3 {[%clk 0:03:00]}  g6 {[%clk 0:02:59]} 6. Nf3 {[%clk 0:02:59]}  Bg7 {[%clk 0:02:59]} 7. cxd5 {[%clk 0:03:00]}  O-O {[%clk 0:02:59]} 8. Bc4 {[%clk 0:03:00]}  Na6 {[%clk 0:02:58]} 9. O-O {[%clk 0:03:00]}  Qb6 {[%clk 0:02:58]} 10. Qb3 {[%clk 0:02:59]}  Rd8 {[%clk 0:02:50]} 11. Qxb6 {[%clk 0:02:57]}  axb6 {[%clk 0:02:50]} 12. Ne5 {[%clk 0:02:53]}  Nc7 {[%clk 0:02:45]} 13. d6 {[%clk 0:02:50]}  Rxd6 {[%clk 0:02:28]} 14. Bxf7+ {[%clk 0:02:19]}  Kf8 {[%clk 0:02:27]} 15. Bb3 {[%clk 0:02:15]}  Be6 {[%clk 0:02:26]} 16. Be3 {[%clk 0:02:13]}  Nfd5 {[%clk 0:02:13]} 17. Nxd5 {[%clk 0:02:11]}  Bxd5 {[%clk 0:02:12]} 18. Rfc1 {[%clk 0:02:10]}  Ne6 {[%clk 0:01:58]} 19. Bxd5 {[%clk 0:01:59]}  Rxd5 {[%clk 0:01:58]} 20. Nc4 {[%clk 0:01:59]}  Ra6 {[%clk 0:01:56]} 21. Rd1 {[%clk 0:01:52]}  Bxd4 {[%clk 0:01:55]} 22. Bxd4 {[%clk 0:01:52]}  Rxd4 {[%clk 0:01:54]} 23. Rxd4 {[%clk 0:01:50]}  Nxd4 {[%clk 0:01:55]} 24. Rd1 {[%clk 0:01:50]}  Rxa2 {[%clk 0:01:51]} 25. h3 {[%clk 0:01:42]}  Nc6 {[%clk 0:01:51]} 26. Rd7 {[%clk 0:01:38]}  b5 {[%clk 0:01:51]} 27. Ne3 {[%clk 0:01:36]}  Rxb2 {[%clk 0:01:50]} 28. Rxb7 {[%clk 0:01:36]}  b4 {[%clk 0:01:51]} 29. Nd5 {[%clk 0:01:33]}  b3 {[%clk 0:01:50]} 30. Nc3 {[%clk 0:01:30]}  Na5 {[%clk 0:01:44]} 31. Rb5 {[%clk 0:01:29]}  Rc2 {[%clk 0:01:42]} 32. Na4 {[%clk 0:01:30]}  Ra2 {[%clk 0:01:28]} 33. Nc3 {[%clk 0:01:29]}  Ra3 {[%clk 0:01:24]} 34. Kh2 {[%clk 0:01:29]}  b2 {[%clk 0:01:22]} 35. Nb1 {[%clk 0:01:25]}  Ra2 {[%clk 0:01:20]} 36. Nc3 {[%clk 0:01:26]}  Ra3 {[%clk 0:01:20]} 37. Nb1 {[%clk 0:01:26]}  Ra2 {[%clk 0:01:19]} 38. Nd2 {[%clk 0:01:11]}  Nc6 {[%clk 0:01:16]} 39. Nc4 {[%clk 0:01:11]}  b1=Q {[%clk 0:01:13]} 40. Rxb1 {[%clk 0:01:12]}  Rxf2 {[%clk 0:01:13]} 41. Kg3 {[%clk 0:01:12]}  Rc2 {[%clk 0:01:11]} 42. Ne3 {[%clk 0:01:12]}  Rc3 {[%clk 0:01:11]} 43. Kf3 {[%clk 0:01:13]}  Nd4+ {[%clk 0:01:10]} 44. Ke4 {[%clk 0:01:13]}  Ne6 {[%clk 0:01:11]} 45. Rf1+ {[%clk 0:01:11]}  Kg7 {[%clk 0:01:10]} 46. h4 {[%clk 0:01:07]}  h5 {[%clk 0:01:08]} 47. g3 {[%clk 0:01:07]}  Nc5+ {[%clk 0:01:06]} 48. Kd4 {[%clk 0:01:06]}  Rd3+ {[%clk 0:01:06]} 49. Kxc5 {[%clk 0:01:05]}  Rxe3 {[%clk 0:01:07]} 50. Kd5 {[%clk 0:01:03]}  Rxg3 {[%clk 0:01:06]} 51. Ke6 {[%clk 0:01:02]}  Rg4 {[%clk 0:01:06]} 52. Rh1 {[%clk 0:00:54]}  Re4+ {[%clk 0:01:05]} 53. Kd7 {[%clk 0:00:54]}  Kf6 {[%clk 0:01:00]} 54. Rf1+ {[%clk 0:00:54]}  Kg7 {[%clk 0:00:59]} 55. Rh1 {[%clk 0:00:53]}  Re2 {[%clk 0:00:58]} 56. Ke8 {[%clk 0:00:53]}  e5 {[%clk 0:00:57]} 57. Ke7 {[%clk 0:00:52]}  e4 {[%clk 0:00:57]} 58. Rf1 {[%clk 0:00:52]}  e3 {[%clk 0:00:56]} 59. Rf7+ {[%clk 0:00:52]}  Kh6 {[%clk 0:00:56]} 60. Rf3 {[%clk 0:00:52]}  Re1 {[%clk 0:00:55]} 61. Rg3 {[%clk 0:00:45]}  e2 {[%clk 0:00:53]} 62. Rg2 {[%clk 0:00:42]}  Rh1 {[%clk 0:00:52]} 63. Rxe2 {[%clk 0:00:42]}  Rxh4 {[%clk 0:00:52]} 64. Kf7 {[%clk 0:00:43]}  Rf4+ {[%clk 0:00:52]} 65. Kg8 {[%clk 0:00:43]}  h4 {[%clk 0:00:52]} 0-1


[Site "https://www.chess.com"]

[Event "Titled Tuesday Blitz September 28 2021"]
[White "Maksimenko, Viktor"]
[Black "Tanenbaum, Zachary"]
[WhiteFideId "13710478"]
[BlackFideId "2060850"]
[WhiteElo "2269"]
[BlackElo "2165"]
[Result "1-0"]
[Round "08"]
[TimeControl "180+1"]
[Date "2021.09.28"]
[WhiteClock "0:01:08"]
[BlackClock "0:00:02"]

1. d4 {[%clk 0:03:00]}  d5 {[%clk 0:02:59]} 2. c4 {[%clk 0:03:01]}  dxc4 {[%clk 0:03:00]} 3. Nf3 {[%clk 0:03:00]}  a6 {[%clk 0:03:00]} 4. e3 {[%clk 0:03:00]}  Nf6 {[%clk 0:02:59]} 5. Bxc4 {[%clk 0:02:59]}  e6 {[%clk 0:03:00]} 6. O-O {[%clk 0:02:58]}  c5 {[%clk 0:03:01]} 7. Nc3 {[%clk 0:02:57]}  b5 {[%clk 0:03:00]} 8. Bb3 {[%clk 0:02:57]}  Bb7 {[%clk 0:02:58]} 9. Qe2 {[%clk 0:02:56]}  Qc7 {[%clk 0:02:53]} 10. h3 {[%clk 0:02:53]}  Be7 {[%clk 0:02:51]} 11. Rd1 {[%clk 0:02:51]}  O-O {[%clk 0:02:50]} 12. dxc5 {[%clk 0:02:48]}  Bxc5 {[%clk 0:02:50]} 13. Bc2 {[%clk 0:02:48]}  Nc6 {[%clk 0:02:46]} 14. a3 {[%clk 0:02:47]}  Rfd8 {[%clk 0:02:45]} 15. b4 {[%clk 0:02:46]}  Bd6 {[%clk 0:02:42]} 16. Bb2 {[%clk 0:02:45]}  Ne5 {[%clk 0:02:38]} 17. Nxe5 {[%clk 0:02:30]}  Bxe5 {[%clk 0:02:38]} 18. Rac1 {[%clk 0:02:26]}  Rxd1+ {[%clk 0:02:32]} 19. Nxd1 {[%clk 0:02:23]}  Qd6 {[%clk 0:02:21]} 20. Bb1 {[%clk 0:02:14]}  Bxb2 {[%clk 0:01:59]} 21. Nxb2 {[%clk 0:02:15]}  Nd5 {[%clk 0:01:32]} 22. Nd3 {[%clk 0:02:09]}  Rd8 {[%clk 0:01:17]} 23. Nc5 {[%clk 0:02:09]}  Ba8 {[%clk 0:01:05]} 24. Qd3 {[%clk 0:01:53]}  g6 {[%clk 0:01:03]} 25. Rd1 {[%clk 0:01:51]}  Qc6 {[%clk 0:00:24]} 26. e4 {[%clk 0:01:50]}  f5 {[%clk 0:00:25]} 27. Ba2 {[%clk 0:01:36]}  fxe4 {[%clk 0:00:22]} 28. Qxe4 {[%clk 0:01:37]}  Re8 {[%clk 0:00:12]} 29. Rd3 {[%clk 0:01:10]}  Kg7 {[%clk 0:00:03]} 30. Qe5+ {[%clk 0:01:09]}  Nf6 {[%clk 0:00:02]} 31. Rf3 {[%clk 0:01:08]} 1-0


[Site "https://www.chess.com"]

[Event "Titled Tuesday Blitz September 28 2021"]
[White "Megagigahiper3345"]
[Black "Quispe Arteaga, Gabriel"]
[BlackFideId "32059809"]
[WhiteElo "2554"]
[BlackElo "2192"]
[Result "0-1"]
[Round "08"]
[TimeControl "180+1"]
[Date "2021.09.28"]
[WhiteClock "0:00:01"]
[BlackClock "0:00:04"]

1. d4 {[%clk 0:03:00]}  Nf6 {[%clk 0:02:59]} 2. c4 {[%clk 0:03:01]}  e6 {[%clk 0:03:00]} 3. Nc3 {[%clk 0:03:02]}  Bb4 {[%clk 0:03:00]} 4. g3 {[%clk 0:03:02]}  O-O {[%clk 0:03:00]} 5. Bg2 {[%clk 0:03:03]}  d5 {[%clk 0:03:00]} 6. Nf3 {[%clk 0:03:04]}  c5 {[%clk 0:02:58]} 7. O-O {[%clk 0:03:04]}  cxd4 {[%clk 0:02:58]} 8. Nxd4 {[%clk 0:03:03]}  e5 {[%clk 0:02:58]} 9. Nc2 {[%clk 0:03:00]}  Bxc3 {[%clk 0:02:57]} 10. bxc3 {[%clk 0:03:01]}  dxc4 {[%clk 0:02:58]} 11. Bg5 {[%clk 0:02:58]}  Nc6 {[%clk 0:02:56]} 12. Ne3 {[%clk 0:02:55]}  Be6 {[%clk 0:02:55]} 13. Qa4 {[%clk 0:02:53]}  Qc7 {[%clk 0:02:49]} 14. Bxf6 {[%clk 0:02:50]}  gxf6 {[%clk 0:02:49]} 15. Nxc4 {[%clk 0:02:50]}  Ne7 {[%clk 0:02:32]} 16. Ne3 {[%clk 0:02:36]}  a6 {[%clk 0:02:29]} 17. c4 {[%clk 0:02:35]}  Rab8 {[%clk 0:02:24]} 18. Rac1 {[%clk 0:02:34]}  Qc5 {[%clk 0:02:14]} 19. Nd5 {[%clk 0:02:31]}  Kg7 {[%clk 0:02:08]} 20. Nxe7 {[%clk 0:01:48]}  Qxe7 {[%clk 0:02:09]} 21. c5 {[%clk 0:01:48]}  Rfc8 {[%clk 0:02:07]} 22. Qa5 {[%clk 0:01:44]}  Qc7 {[%clk 0:01:55]} 23. Qa3 {[%clk 0:01:40]}  Qe7 {[%clk 0:01:37]} 24. Rfd1 {[%clk 0:01:35]}  b6 {[%clk 0:01:35]} 25. Qxa6 {[%clk 0:01:34]}  bxc5 {[%clk 0:01:33]} 26. a4 {[%clk 0:01:29]}  c4 {[%clk 0:01:27]} 27. a5 {[%clk 0:01:29]}  Qb4 {[%clk 0:01:20]} 28. Qa7 {[%clk 0:01:22]}  c3 {[%clk 0:01:20]} 29. a6 {[%clk 0:01:18]}  c2 {[%clk 0:01:20]} 30. Rf1 {[%clk 0:01:14]}  Qd2 {[%clk 0:01:08]} 31. Qe3 {[%clk 0:01:04]}  Qxe3 {[%clk 0:01:01]} 32. fxe3 {[%clk 0:01:04]}  Rc7 {[%clk 0:01:02]} 33. Bb7 {[%clk 0:00:55]}  Bb3 {[%clk 0:00:40]} 34. a7 {[%clk 0:00:51]}  Rcxb7 {[%clk 0:00:40]} 35. axb8=Q {[%clk 0:00:51]}  Rxb8 {[%clk 0:00:41]} 36. e4 {[%clk 0:00:45]}  Rd8 {[%clk 0:00:40]} 37. Kf2 {[%clk 0:00:44]}  Rd1 {[%clk 0:00:36]} 38. Ke3 {[%clk 0:00:36]}  Kg6 {[%clk 0:00:36]} 39. h3 {[%clk 0:00:24]}  Kg5 {[%clk 0:00:33]} 40. Kf3 {[%clk 0:00:24]}  f5 {[%clk 0:00:30]} 41. h4+ {[%clk 0:00:24]}  Kg6 {[%clk 0:00:28]} 42. exf5+ {[%clk 0:00:23]}  Kxf5 {[%clk 0:00:29]} 43. e4+ {[%clk 0:00:20]}  Ke6 {[%clk 0:00:29]} 44. Ke3 {[%clk 0:00:20]}  h5 {[%clk 0:00:23]} 45. Re1 {[%clk 0:00:20]}  f5 {[%clk 0:00:20]} 46. exf5+ {[%clk 0:00:20]}  Kxf5 {[%clk 0:00:21]} 47. Kf3 {[%clk 0:00:16]}  Rd2 {[%clk 0:00:19]} 48. Ke3 {[%clk 0:00:10]}  Rg2 {[%clk 0:00:18]} 49. Rf1+ {[%clk 0:00:10]}  Kg4 {[%clk 0:00:18]} 50. Ke4 {[%clk 0:00:10]}  Re2+ {[%clk 0:00:16]} 51. Kd3 {[%clk 0:00:10]}  Rg2 {[%clk 0:00:15]} 52. Kc3 {[%clk 0:00:10]}  Rxg3+ {[%clk 0:00:16]} 53. Kb4 {[%clk 0:00:10]}  Kxh4 {[%clk 0:00:15]} 54. Rfe1 {[%clk 0:00:09]}  Kg4 {[%clk 0:00:05]} 55. Rxe5 {[%clk 0:00:07]}  h4 {[%clk 0:00:06]} 56. Rh1 {[%clk 0:00:04]}  h3 {[%clk 0:00:04]} 57. Re4+ {[%clk 0:00:01]}  Kg5 {[%clk 0:00:04]} 0-1


[Site "https://www.chess.com"]

[Event "Titled Tuesday Blitz September 28 2021"]
[White "Mekhitarian, Krikor Sevag"]
[Black "Kollars, Dmitrij"]
[WhiteFideId "2107660"]
[BlackFideId "12909572"]
[WhiteElo "2598"]
[BlackElo "2584"]
[Result "0-1"]
[Round "08"]
[TimeControl "180+1"]
[Date "2021.09.28"]
[WhiteClock "0:00:04"]
[BlackClock "0:00:43"]

1. e4 {[%clk 0:02:43]}  e5 {[%clk 0:02:58]} 2. Nf3 {[%clk 0:02:41]}  Nc6 {[%clk 0:02:58]} 3. Bb5 {[%clk 0:02:41]}  a6 {[%clk 0:02:59]} 4. Ba4 {[%clk 0:02:41]}  Nf6 {[%clk 0:02:58]} 5. O-O {[%clk 0:02:42]}  Bc5 {[%clk 0:02:58]} 6. c3 {[%clk 0:02:30]}  b5 {[%clk 0:02:58]} 7. Bc2 {[%clk 0:02:13]}  d5 {[%clk 0:02:58]} 8. d3 {[%clk 0:02:04]}  O-O {[%clk 0:02:55]} 9. Nbd2 {[%clk 0:02:04]}  Re8 {[%clk 0:02:50]} 10. h3 {[%clk 0:02:02]}  h6 {[%clk 0:02:48]} 11. Re1 {[%clk 0:02:00]}  Be6 {[%clk 0:02:41]} 12. Qe2 {[%clk 0:01:47]}  Qd7 {[%clk 0:02:23]} 13. Nf1 {[%clk 0:01:19]}  Rad8 {[%clk 0:02:15]} 14. Rd1 {[%clk 0:01:14]}  Bf8 {[%clk 0:01:36]} 15. Ng3 {[%clk 0:01:11]}  g6 {[%clk 0:01:36]} 16. a4 {[%clk 0:01:09]}  Qc8 {[%clk 0:01:27]} 17. axb5 {[%clk 0:01:08]}  axb5 {[%clk 0:01:28]} 18. Be3 {[%clk 0:00:37]}  Nd7 {[%clk 0:01:21]} 19. exd5 {[%clk 0:00:35]}  Bxd5 {[%clk 0:01:22]} 20. b4 {[%clk 0:00:14]}  Bg7 {[%clk 0:01:13]} 21. Rab1 {[%clk 0:00:14]}  f5 {[%clk 0:01:07]} 22. Bb3 {[%clk 0:00:14]}  Bxb3 {[%clk 0:01:03]} 23. Rxb3 {[%clk 0:00:15]}  f4 {[%clk 0:01:04]} 24. Ne4 {[%clk 0:00:11]}  fxe3 {[%clk 0:01:04]} 25. Qxe3 {[%clk 0:00:10]}  Ne7 {[%clk 0:01:00]} 26. Ra3 {[%clk 0:00:09]}  Nd5 {[%clk 0:00:58]} 27. Qd2 {[%clk 0:00:09]}  Nf4 {[%clk 0:00:59]} 28. Kh2 {[%clk 0:00:09]}  Nf6 {[%clk 0:00:58]} 29. Nxf6+ {[%clk 0:00:08]}  Bxf6 {[%clk 0:00:59]} 30. Ng1 {[%clk 0:00:08]}  Qf5 {[%clk 0:00:59]} 31. d4 {[%clk 0:00:05]}  exd4 {[%clk 0:00:58]} 32. cxd4 {[%clk 0:00:06]}  Rxd4 {[%clk 0:00:57]} 33. Qa2+ {[%clk 0:00:06]}  Qe6 {[%clk 0:00:54]} 34. Qxe6+ {[%clk 0:00:05]}  Rxe6 {[%clk 0:00:54]} 35. Rc1 {[%clk 0:00:04]}  Nd5 {[%clk 0:00:52]} 36. Nf3 {[%clk 0:00:03]}  Rxb4 {[%clk 0:00:50]} 37. Ra7 {[%clk 0:00:03]}  Rc4 {[%clk 0:00:48]} 38. Rd1 {[%clk 0:00:03]}  Rd6 {[%clk 0:00:48]} 39. Rb7 {[%clk 0:00:02]}  b4 {[%clk 0:00:47]} 40. Re1 {[%clk 0:00:03]}  Kf7 {[%clk 0:00:47]} 41. g3 {[%clk 0:00:03]}  Rb6 {[%clk 0:00:43]} 42. Ra7 {[%clk 0:00:03]}  b3 {[%clk 0:00:43]} 43. Kg2 {[%clk 0:00:03]}  b2 {[%clk 0:00:43]} 44. Rb1 {[%clk 0:00:04]}  Rc1 {[%clk 0:00:43]} 45. Rxb2 {[%clk 0:00:04]}  Rxb2 {[%clk 0:00:43]} 0-1


[Site "https://www.chess.com"]

[Event "Titled Tuesday Blitz September 28 2021"]
[White "Nastore, Pavel-Alexandru"]
[Black "Babiy, Olga"]
[WhiteFideId "1255002"]
[BlackFideId "14117258"]
[WhiteElo "1763"]
[BlackElo "2253"]
[Result "0-1"]
[Round "08"]
[TimeControl "180+1"]
[Date "2021.09.28"]
[WhiteClock "0:00:03"]
[BlackClock "0:00:56"]

1. e4 {[%clk 0:03:00]}  c5 {[%clk 0:03:00]} 2. Nf3 {[%clk 0:02:58]}  d6 {[%clk 0:03:00]} 3. d4 {[%clk 0:02:54]}  cxd4 {[%clk 0:03:01]} 4. Nxd4 {[%clk 0:02:55]}  Nf6 {[%clk 0:03:02]} 5. Nc3 {[%clk 0:02:52]}  a6 {[%clk 0:03:02]} 6. Bg5 {[%clk 0:02:48]}  Nbd7 {[%clk 0:03:02]} 7. Qe2 {[%clk 0:02:46]}  h6 {[%clk 0:03:02]} 8. Bh4 {[%clk 0:02:45]}  g6 {[%clk 0:03:02]} 9. f4 {[%clk 0:02:45]}  e5 {[%clk 0:02:58]} 10. fxe5 {[%clk 0:02:33]}  dxe5 {[%clk 0:02:59]} 11. Nb3 {[%clk 0:02:30]}  Qc7 {[%clk 0:02:55]} 12. O-O-O {[%clk 0:02:30]}  b5 {[%clk 0:02:41]} 13. g4 {[%clk 0:02:07]}  Bb7 {[%clk 0:02:21]} 14. Nd5 {[%clk 0:02:04]}  Nxd5 {[%clk 0:02:08]} 15. exd5 {[%clk 0:02:03]}  Bd6 {[%clk 0:02:09]} 16. Bg2 {[%clk 0:01:43]}  Rc8 {[%clk 0:02:03]} 17. Kb1 {[%clk 0:01:40]}  a5 {[%clk 0:01:53]} 18. Nd4 {[%clk 0:01:38]}  O-O {[%clk 0:01:38]} 19. Nc6 {[%clk 0:01:31]}  Bxc6 {[%clk 0:01:28]} 20. dxc6 {[%clk 0:01:30]}  Nb8 {[%clk 0:01:28]} 21. Qxb5 {[%clk 0:01:27]}  Nxc6 {[%clk 0:01:23]} 22. Qd5 {[%clk 0:01:05]}  Nb4 {[%clk 0:01:09]} 23. Qxd6 {[%clk 0:00:57]}  Qxc2+ {[%clk 0:01:09]} 24. Ka1 {[%clk 0:00:57]}  Qxg2 {[%clk 0:01:09]} 25. Qxe5 {[%clk 0:00:38]}  Qxg4 {[%clk 0:01:06]} 26. Bf6 {[%clk 0:00:30]}  Rfe8 {[%clk 0:01:02]} 27. Qxa5 {[%clk 0:00:26]}  Nc2+ {[%clk 0:00:58]} 28. Kb1 {[%clk 0:00:25]}  Qe4 {[%clk 0:00:59]} 29. Qd5 {[%clk 0:00:03]}  Na3+ {[%clk 0:00:56]} 0-1


[Site "https://www.chess.com"]

[Event "Titled Tuesday Blitz September 28 2021"]
[White "Nurmanova, Alua"]
[Black "Potapova, Margarita"]
[WhiteFideId "13729390"]
[BlackFideId "14126869"]
[WhiteElo "1869"]
[BlackElo "2214"]
[Result "1-0"]
[Round "08"]
[TimeControl "180+1"]
[Date "2021.09.28"]
[WhiteClock "0:00:20"]
[BlackClock "0:00:02"]

1. e4 {[%clk 0:03:00]}  c5 {[%clk 0:02:59]} 2. Nf3 {[%clk 0:03:00]}  d6 {[%clk 0:03:00]} 3. d4 {[%clk 0:03:01]}  cxd4 {[%clk 0:03:01]} 4. Nxd4 {[%clk 0:03:02]}  Nf6 {[%clk 0:03:01]} 5. Nc3 {[%clk 0:03:02]}  a6 {[%clk 0:03:02]} 6. Bg5 {[%clk 0:03:02]}  e6 {[%clk 0:03:02]} 7. f4 {[%clk 0:03:02]}  h6 {[%clk 0:03:03]} 8. Bh4 {[%clk 0:03:02]}  Qb6 {[%clk 0:03:03]} 9. Qd2 {[%clk 0:03:02]}  Qxb2 {[%clk 0:03:03]} 10. Rb1 {[%clk 0:03:03]}  Qa3 {[%clk 0:03:03]} 11. e5 {[%clk 0:03:03]}  dxe5 {[%clk 0:03:04]} 12. fxe5 {[%clk 0:03:04]}  Nfd7 {[%clk 0:03:05]} 13. Be2 {[%clk 0:03:00]}  Be7 {[%clk 0:02:46]} 14. Bxe7 {[%clk 0:02:37]}  Qxe7 {[%clk 0:02:45]} 15. O-O {[%clk 0:02:38]}  Nxe5 {[%clk 0:02:42]} 16. Ne4 {[%clk 0:02:30]}  O-O {[%clk 0:02:34]} 17. Rb3 {[%clk 0:01:55]}  Nbc6 {[%clk 0:02:23]} 18. Nxc6 {[%clk 0:01:41]}  bxc6 {[%clk 0:02:15]} 19. Qc3 {[%clk 0:01:28]}  f6 {[%clk 0:02:04]} 20. Nc5 {[%clk 0:01:20]}  a5 {[%clk 0:01:55]} 21. a4 {[%clk 0:01:05]}  Rd8 {[%clk 0:01:55]} 22. h4 {[%clk 0:01:01]}  Rd5 {[%clk 0:01:41]} 23. Ne4 {[%clk 0:00:58]}  c5 {[%clk 0:01:31]} 24. Qg3 {[%clk 0:00:48]}  f5 {[%clk 0:01:24]} 25. Nc3 {[%clk 0:00:47]}  Qf6 {[%clk 0:00:57]} 26. Nxd5 {[%clk 0:00:44]}  exd5 {[%clk 0:00:58]} 27. Re3 {[%clk 0:00:44]}  Nc6 {[%clk 0:00:51]} 28. Re8+ {[%clk 0:00:43]}  Kh7 {[%clk 0:00:49]} 29. Bd3 {[%clk 0:00:43]}  Nd4 {[%clk 0:00:36]} 30. c3 {[%clk 0:00:42]}  c4 {[%clk 0:00:27]} 31. Bb1 {[%clk 0:00:40]}  Bd7 {[%clk 0:00:27]} 32. Re3 {[%clk 0:00:26]}  Nc6 {[%clk 0:00:21]} 33. Qc7 {[%clk 0:00:25]}  Be8 {[%clk 0:00:13]} 34. Rxf5 {[%clk 0:00:23]}  Qg6 {[%clk 0:00:02]} 35. Rf1 {[%clk 0:00:21]}  Ra7 {[%clk 0:00:02]} 36. Bxg6+ {[%clk 0:00:20]}  Bxg6 {[%clk 0:00:02]} 37. Qxc6 {[%clk 0:00:20]} 1-0


[Site "https://www.chess.com"]